bitfinex/quotes_BTCUSD_20210402
["timestamp","ask_amount","ask_price","bid_price","bid_amount"]
[1617337575014,0.07635516,59712.0,59711.0,0.00111783]
[1617337576818,0.13529402,59712.0,59711.0,0.00111783]
[1617337577021,0.07635516,59712.0,59711.0,0.00111783]
[1617337577218,0.07635516,59712.0,59711.0,0.54640483]
[1617337578422,0.07635516,59712.0,59711.0,0.38740483]
[1617337578622,0.52167516,59712.0,59711.0,0.00111783]
[1617337578822,0.91133134,59712.0,59711.0,0.00111783]
[1617337579023,1.22810134,59712.0,59711.0,0.00111783]
[1617337579223,0.83844516,59712.0,59711.0,0.00111783]
[1617337579419,1.22810134,59712.0,59711.0,0.00111783]
[1617337579623,0.83844516,59712.0,59711.0,0.00111783]
[1617337580024,0.68167516,59712.0,59711.0,0.00111783]
[1617337580837,1.07133134,59712.0,59711.0,0.00111783]
[1617337581837,0.99,59711.0,59710.0,0.23]
[1617337582037,1.05780172,59711.0,59710.0,0.23]
[1617337582241,0.47656188,59711.0,59710.0,0.23]
[1617337582639,0.06780172,59711.0,59710.0,0.23]
[1617337584069,0.06780172,59711.0,59710.0,0.22]
[1617337585891,0.06780172,59711.0,59710.0,2.805]
[1617337586101,0.06780172,59711.0,59710.0,3.811287]
[1617337586301,0.06780172,59711.0,59710.0,4.816147]
[1617337586503,0.06780172,59711.0,59710.0,4.957117]
[1617337586700,0.06780172,59711.0,59710.0,6.427117]
[1617337586900,0.10723041,59711.0,59710.0,4.987117]
[1617337587099,0.10723041,59711.0,59710.0,5.238577]
[1617337587295,0.03942869,59711.0,59710.0,5.238577]
[1617337587498,0.1020592,59711.0,59710.0,5.238577]
[1617337587699,0.06263051,59711.0,59710.0,6.708577]
[1617337588953,0.06263051,59711.0,59710.0,5.238577]
[1617337589753,0.06263051,59711.0,59710.0,6.608577]
[1617337589962,0.06263051,59711.0,59710.0,5.238577]
[1617337590755,0.06263051,59711.0,59710.0,6.408577]
[1617337591359,0.00859853,59712.0,59711.0,3.13]
[1617337591557,0.00859853,59712.0,59711.0,5.665287]
[1617337591758,0.00859853,59712.0,59711.0,6.670147]
[1617337591954,0.00859853,59712.0,59711.0,7.990947]
[1617337592362,0.00859853,59712.0,59711.0,8.290947]
[1617337592762,0.00859853,59712.0,59711.0,8.285947]
[1617337592956,0.00859853,59712.0,59711.0,8.290947]
[1617337593581,0.251363,59754.0,59725.0,0.03]
[1617337593780,0.05905757,59735.0,59726.0,1.74320662]
[1617337593976,0.89603684,59739.0,59727.0,4.213]
[1617337594169,0.89603684,59739.0,59727.0,5.21786]
[1617337594572,0.89603684,59739.0,59727.0,5.24786]
[1617337594770,0.89603684,59739.0,59727.0,6.14286]
[1617337595572,0.89603684,59739.0,59727.0,6.394196]
[1617337596994,1.25492788,59728.0,59727.0,6.394196]
[1617337598853,1.25492788,59728.0,59727.0,5.439196]
[1617337599253,1.25492788,59728.0,59727.0,2.339196]
[1617337599458,0.25602788,59728.0,59727.0,5.499196]
[1617337601252,0.25602788,59728.0,59727.0,5.544196]
[1617337601453,0.25602788,59728.0,59727.0,2.444196]
[1617337601663,0.25602788,59728.0,59727.0,2.03486]
[1617337601862,0.25602788,59728.0,59727.0,1.03486]
[1617337605089,0.25602788,59728.0,59727.0,1.25986]
[1617337606697,0.23602788,59728.0,59727.0,1.25986]
[1617337609137,0.28602788,59728.0,59727.0,1.03486]
[1617337609534,3.09602788,59728.0,59727.0,1.00486]
[1617337609730,3.64602788,59728.0,59727.0,1.00486]
[1617337610737,4.12568406,59728.0,59727.0,1.00486]
[1617337610932,3.74102788,59728.0,59727.0,1.00486]
[1617337611134,4.13068406,59728.0,59727.0,1.00486]
[1617337611944,4.13068406,59728.0,59727.0,0.60856]
[1617337612547,4.13068406,59728.0,59712.0,0.15]
[1617337612751,0.002,59723.0,59712.0,0.15]
[1617337612946,0.1090783,59720.0,59712.0,0.15]
[1617337613151,0.0590724,59719.0,59712.0,0.15]
[1617337613347,0.17217473,59719.0,59712.0,0.145]
[1617337613548,0.17217473,59719.0,59708.0,9.479e-05]
[1617337613549,1.02538301,59719.0,59708.0,9.479e-05]
[1617337613852,0.89850828,59718.0,59708.0,9.479e-05]
[1617337614046,0.3938521,59717.0,59708.0,9.479e-05]
[1617337614246,0.06298965,59716.0,59708.0,9.479e-05]
[1617337614476,0.2,59715.0,59708.0,9.479e-05]
[1617337614672,0.58965618,59715.0,59708.0,9.479e-05]
[1617337614871,0.63965618,59715.0,59708.0,9.479e-05]
[1617337615073,0.25,59715.0,59708.0,9.479e-05]
[1617337615271,0.165,59714.0,59708.0,9.479e-05]
[1617337615672,0.06287748,59713.0,59708.0,9.479e-05]
[1617337615874,0.165,59714.0,59708.0,9.479e-05]
[1617337616273,0.052,59715.0,59708.0,9.479e-05]
[1617337616476,0.002,59715.0,59708.0,9.479e-05]
[1617337617100,0.01082953,59713.0,59708.0,9.479e-05]
[1617337617304,0.01082953,59713.0,59709.0,0.386904]
[1617337617702,0.01082953,59713.0,59712.0,0.386904]
[1617337618304,0.71082953,59713.0,59712.0,0.386904]
[1617337618504,0.01082953,59713.0,59710.0,0.03]
[1617337619524,0.002,59715.0,59710.0,0.03]
[1617337619740,0.01082953,59714.0,59710.0,0.03]
[1617337620745,0.01082953,59714.0,59711.0,0.386904]
[1617337621545,0.01082953,59714.0,59713.0,0.03]
[1617337621745,0.01082953,59714.0,59713.0,0.416904]
[1617337622547,0.04,59723.0,59713.0,0.416904]
[1617337622745,0.05282953,59723.0,59715.0,0.03]
[1617337622946,0.01282953,59723.0,59716.0,0.03]
[1617337623145,0.01282953,59723.0,59715.0,0.03]
[1617337623949,0.01082953,59723.0,59715.0,0.03]
[1617337624356,0.01082953,59723.0,59717.0,0.0052]
[1617337624549,0.01082953,59723.0,59718.0,0.386904]
[1617337624979,0.01082953,59723.0,59720.0,0.386904]
[1617337625978,0.01082953,59727.0,59720.0,0.386904]
[1617337626378,0.01082953,59727.0,59720.0,0.391104]
[1617337626580,1.41483388,59739.0,59720.0,0.391104]
[1617337626780,0.002,59735.0,59719.0,0.03]
[1617337626982,0.021272,59734.0,59718.0,0.03]
[1617337627179,0.0004,59730.0,59718.0,0.03]
[1617337627380,0.0004,59730.0,59718.0,0.034]
[1617337628195,0.0004,59730.0,59722.0,0.006]
[1617337628398,0.04,59736.0,59721.0,0.004]
[1617337628598,0.00806298,59729.0,59721.0,0.004]
[1617337628797,0.00806298,59729.0,59719.0,0.03]
[1617337629000,0.00806298,59729.0,59720.0,0.386904]
[1617337629195,0.00806298,59729.0,59719.0,0.03]
[1617337629400,0.00806298,59729.0,59718.0,0.0044]
[1617337629606,0.00806298,59729.0,59717.0,1.00474]
[1617337629607,0.166,59719.0,59717.0,1.00474]
[1617337629797,0.0004,59726.0,59717.0,1.00474]
[1617337630420,0.3404,59726.0,59717.0,1.00474]
[1617337630623,0.3904,59726.0,59717.0,1.00474]
[1617337631622,0.251504,59723.0,59717.0,1.00474]
[1617337632019,0.05,59723.0,59717.0,1.00474]
[1617337632422,0.15698216,59725.0,59717.0,1.00430354]
[1617337632623,0.19698216,59725.0,59717.0,1.00430354]
[1617337633055,0.19698216,59725.0,59718.0,0.386904]
[1617337633255,0.15683008,59724.0,59717.0,1.00430354]
[1617337633655,0.15676645,59723.0,59717.0,1.00430354]
[1617337633861,0.20676645,59723.0,59717.0,1.00430354]
[1617337634062,0.00805529,59724.0,59717.0,1.00430354]
[1617337634266,0.251496,59723.0,59717.0,1.00430354]
[1617337635477,0.185,59732.0,59717.0,1.00430354]
[1617337635676,0.002,59731.0,59717.0,1.00430354]
[1617337635881,0.325,59731.0,59717.0,1.00430354]
[1617337636083,0.021272,59727.0,59717.0,1.00430354]
[1617337636277,0.002,59725.0,59717.0,1.00430354]
[1617337636679,0.702493,59721.0,59717.0,1.00430354]
[1617337636876,0.3,59720.0,59717.0,1.00430354]
[1617337637081,0.231272,59719.0,59717.0,1.00430354]
[1617337637479,0.281272,59719.0,59717.0,1.00430354]
[1617337637878,3.061553,59718.0,59717.0,1.00430354]
[1617337638109,4.12298969,59718.0,59717.0,1.00430354]
[1617337638306,4.17298969,59718.0,59717.0,1.00430354]
[1617337638507,4.17298969,59718.0,59717.0,0.93033338]
[1617337639505,4.18045492,59718.0,59717.0,0.93033338]
[1617337640308,4.18045492,59718.0,59708.0,9.479e-05]
[1617337640509,0.251577,59713.0,59708.0,9.479e-05]
[1617337640729,0.021272,59712.0,59708.0,9.479e-05]
[1617337642324,0.7292881,59714.0,59708.0,9.479e-05]
[1617337642325,0.135,59711.0,59708.0,9.479e-05]
[1617337642530,2.81,59709.0,59705.0,0.14495479]
[1617337642735,0.3438521,59708.0,59704.0,0.00042]
[1617337642929,1.05481054,59708.0,59704.0,0.00042]
[1617337643128,0.05469288,59707.0,59704.0,0.00042]
[1617337643349,0.656272,59706.0,59704.0,0.00042]
[1617337643552,2.86468294,59705.0,59704.0,0.00042]
[1617337643749,3.52095494,59705.0,59704.0,0.00042]
[1617337644550,0.71095494,59705.0,59704.0,0.00042]
[1617337644750,0.05468294,59705.0,59704.0,0.00042]
[1617337645147,1.1221498,59705.0,59704.0,0.00042]
[1617337645552,0.0621498,59705.0,59704.0,0.00042]
[1617337645749,0.2721498,59705.0,59704.0,0.00042]
[1617337645972,2.4721498,59705.0,59704.0,0.00042]
[1617337646373,2.4934218,59705.0,59704.0,0.00042]
[1617337646979,0.049,59700.0,59696.0,0.1462]
[1617337647177,0.049,59700.0,59692.0,0.15062]
[1617337647378,0.47,59699.0,59692.0,0.15062]
[1617337647576,0.52,59699.0,59692.0,0.15062]
[1617337647777,0.049,59700.0,59695.0,0.50295]
[1617337648277,0.049,59700.0,59696.0,0.00253754]
[1617337650332,0.049,59700.0,59695.0,0.50048754]
[1617337650533,0.00746767,59699.0,59695.0,0.50048754]
[1617337650736,0.00746767,59699.0,59696.0,0.386904]
[1617337650929,0.00746767,59699.0,59695.0,0.50048754]
[1617337651537,0.021272,59698.0,59695.0,0.50048754]
[1617337651935,0.00746767,59699.0,59695.0,1.00303754]
[1617337652140,0.06221492,59699.0,59695.0,1.00303754]
[1617337652336,0.06221492,59699.0,59696.0,0.386904]
[1617337652337,0.05475414,59698.0,59696.0,0.386904]
[1617337653138,0.05475414,59698.0,59695.0,1.00303754]
[1617337653551,0.2992377,59697.0,59695.0,1.00303754]
[1617337653755,0.72108095,59697.0,59695.0,1.00303754]
[1617337653954,0.05488473,59696.0,59695.0,1.00303754]
[1617337654154,2.70488473,59696.0,59695.0,1.00303754]
[1617337654355,3.221272,59696.0,59695.0,1.00303754]
[1617337654570,3.221272,59696.0,59691.0,0.0004]
[1617337654571,2.05,59695.0,59691.0,0.0004]
[1617337654771,0.03242,59669.0,59668.0,0.1502]
[1617337654962,0.42773,59669.0,59668.0,0.0022]
[1617337655353,0.47773,59669.0,59668.0,0.0022]
[1617337655557,0.42773,59669.0,59668.0,0.0022]
[1617337655759,0.42773,59669.0,59668.0,1.0072]
[1617337655963,0.03989136,59669.0,59668.0,5.614664]
[1617337656163,0.046171,59692.0,59669.0,0.955]
[1617337656397,0.049,59700.0,59682.0,0.955]
[1617337656591,0.13622003,59703.0,59695.0,0.955]
[1617337656795,0.13622003,59703.0,59700.0,0.006]
[1617337656992,0.13622003,59726.0,59703.0,0.333718]
[1617337657191,0.13622003,59726.0,59707.0,0.386904]
[1617337657390,0.13622003,59726.0,59708.0,1.04]
[1617337657586,0.13622003,59726.0,59711.0,3.531904]
[1617337657789,0.13622003,59726.0,59711.0,5.04084774]
[1617337657992,0.251468,59741.0,59713.0,0.045]
[1617337658188,0.13496236,59758.0,59714.0,0.63536356]
[1617337658388,0.2515,59750.0,59729.0,0.004]
[1617337658594,0.021272,59747.0,59729.0,0.004]
[1617337658791,0.002,59746.0,59733.0,0.006]
[1617337659002,0.021272,59742.0,59735.0,0.0056]
[1617337659201,0.021272,59738.0,59731.0,0.0044]
[1617337659402,0.021272,59734.0,59727.0,0.00303724]
[1617337659601,0.802,59741.0,59727.0,0.00303724]
[1617337659804,1.906,59741.0,59727.0,0.00303724]
[1617337660001,0.021272,59740.0,59726.0,0.34085]
[1617337660200,0.311272,59740.0,59726.0,0.34085]
[1617337660406,0.611272,59740.0,59726.0,0.34085]
[1617337660805,0.611272,59740.0,59724.0,0.004]
[1617337661001,0.002,59738.0,59720.0,0.39994374]
[1617337661204,0.002,59738.0,59720.0,0.0048]
[1617337661401,0.021272,59737.0,59720.0,0.0048]
[1617337661627,0.51,59736.0,59720.0,0.0048]
[1617337661828,0.5,59735.0,59720.0,0.0048]
[1617337662429,0.021272,59733.0,59719.0,0.00303724]
[1617337662628,0.763272,59733.0,59718.0,0.004]
[1617337663023,0.813272,59733.0,59718.0,0.004]
[1617337663626,0.3,59732.0,59717.0,0.00303724]
[1617337663828,0.3,59732.0,59715.0,0.00303724]
[1617337664042,0.74,59731.0,59715.0,0.00303724]
[1617337664483,0.227,59729.0,59714.0,0.39994374]
[1617337664685,0.2,59727.0,59711.0,1.40550374]
[1617337664886,0.275,59726.0,59711.0,1.40550374]
[1617337665083,0.775,59726.0,59711.0,1.40550374]
[1617337665486,0.05,59725.0,59711.0,1.40550374]
[1617337665885,0.275,59726.0,59711.0,1.40550374]
[1617337665886,0.325,59726.0,59711.0,1.40550374]
[1617337666083,0.325,59726.0,59714.0,0.03]
[1617337666285,0.05,59726.0,59716.0,0.0052]
[1617337666684,0.052,59729.0,59717.0,0.251488]
[1617337666883,0.052,59729.0,59717.0,0.558448]
[1617337667083,0.002,59729.0,59717.0,0.558448]
[1617337667284,0.002,59729.0,59718.0,0.03]
[1617337667883,0.002,59729.0,59718.0,0.03303724]
[1617337668083,0.10240164,59730.0,59718.0,0.34613726]
[1617337668283,0.10240164,59730.0,59718.0,0.746081]
[1617337668486,0.05240164,59730.0,59718.0,0.34613726]
[1617337668886,0.05240164,59730.0,59718.0,0.34310002]
[1617337669286,0.05240164,59730.0,59721.0,0.165]
[1617337670105,0.05240164,59730.0,59721.0,0.1508]
[1617337670306,0.05240164,59730.0,59720.0,0.0348]
[1617337670511,0.05240164,59730.0,59720.0,0.286272]
[1617337670710,0.05240164,59730.0,59720.0,1.291832]
[1617337670908,0.05240164,59730.0,59721.0,0.386904]
[1617337671113,0.05240164,59730.0,59721.0,1.392464]
[1617337671511,0.05240164,59730.0,59722.0,0.03]
[1617337671715,0.05240164,59730.0,59726.0,0.251434]
[1617337672133,0.05240164,59730.0,59726.0,1.256994]
[1617337672934,0.63291325,59740.0,59726.0,1.256994]
[1617337673136,0.265,59739.0,59726.0,1.00556]
[1617337673337,0.021272,59738.0,59726.0,1.00556]
[1617337673536,0.06399064,59738.0,59726.0,1.00556]
[1617337673937,0.021272,59736.0,59726.0,1.00556]
[1617337674141,0.50783135,59736.0,59726.0,1.00556]
[1617337674341,0.04282689,59732.0,59726.0,1.00556]
[1617337674758,0.04281945,59728.0,59726.0,1.00556]
[1617337675161,0.04282711,59736.0,59726.0,1.00556]
[1617337675359,0.04283337,59727.0,59726.0,1.00556]
[1617337675560,0.19783892,59735.0,59726.0,1.00556]
[1617337675960,0.04283564,59734.0,59726.0,1.00556]
[1617337676166,0.14,59732.0,59726.0,1.00556]
[1617337676365,0.021272,59728.0,59726.0,1.00556]
[1617337676563,0.04283805,59731.0,59726.0,1.00556]
[1617337676763,1.88285371,59727.0,59726.0,1.00556]
[1617337676960,2.21412571,59727.0,59726.0,1.00556]
[1617337677163,2.26412571,59727.0,59726.0,1.00556]
[1617337678375,2.75412571,59727.0,59726.0,1.00556]
[1617337678576,3.01412571,59727.0,59726.0,1.00556]
[1617337678775,2.51412571,59727.0,59726.0,1.00556]
[1617337678983,2.53159292,59727.0,59726.0,1.00556]
[1617337679389,2.77159292,59727.0,59726.0,1.00556]
[1617337679594,3.27159292,59727.0,59711.0,0.03]
[1617337679787,0.2495,59725.0,59710.0,0.03]
[1617337680025,0.021272,59724.0,59710.0,0.03]
[1617337680223,0.11196019,59724.0,59710.0,0.03]
[1617337680629,0.25155,59720.0,59710.0,0.03]
[1617337680831,0.021272,59722.0,59709.0,0.004]
[1617337681030,0.03979547,59721.0,59706.0,0.19]
[1617337681227,0.19979547,59721.0,59707.0,0.955]
[1617337681425,0.03979547,59721.0,59707.0,0.955]
[1617337681626,0.03977316,59720.0,59707.0,0.955]
[1617337681827,0.03977316,59720.0,59710.0,0.251503]
[1617337682228,0.03976016,59724.0,59710.0,0.251503]
[1617337682426,0.021272,59723.0,59710.0,0.251503]
[1617337682633,0.021272,59723.0,59711.0,0.07]
[1617337682830,0.0397732,59722.0,59711.0,0.07]
[1617337683031,0.0397732,59722.0,59711.0,0.04]
[1617337683230,0.33,59721.0,59711.0,0.04]
[1617337683430,0.021272,59720.0,59711.0,0.04]
[1617337683631,0.03978862,59724.0,59713.0,0.0052]
[1617337683832,0.03979776,59720.0,59713.0,0.0052]
[1617337684030,0.03982729,59724.0,59713.0,0.0052]
[1617337684231,0.021272,59723.0,59713.0,0.0052]
[1617337684433,0.03992987,59719.0,59715.0,0.16]
[1617337684639,0.0399373,59722.0,59703.0,0.9921]
[1617337684843,0.002,59723.0,59703.0,0.9921]
[1617337684844,0.81168006,59718.0,59703.0,0.9921]
[1617337685038,0.17491358,59717.0,59703.0,0.9921]
[1617337685457,0.03991025,59716.0,59703.0,0.9921]
[1617337685859,0.29147725,59716.0,59703.0,0.9921]
[1617337686058,0.68,59715.0,59698.0,0.00303724]
[1617337686260,0.34117905,59714.0,59696.0,0.03303724]
[1617337686461,0.03985788,59713.0,59696.0,0.03]
[1617337686657,0.021272,59712.0,59696.0,0.03]
[1617337686858,0.15,59711.0,59699.0,0.03]
[1617337687059,0.021272,59710.0,59699.0,0.03]
[1617337687258,0.06113193,59710.0,59699.0,0.03]
[1617337687462,0.251594,59705.0,59699.0,0.03]
[1617337687881,0.125797,59708.0,59699.0,0.985]
[1617337688082,0.12778257,59719.0,59700.0,0.426904]
[1617337688278,0.021272,59717.0,59704.0,0.0056]
[1617337688676,0.021272,59717.0,59699.0,0.0344]
[1617337688876,0.03986654,59716.0,59699.0,0.0344]
[1617337689077,0.03986654,59716.0,59702.0,0.03]
[1617337689283,0.021272,59715.0,59702.0,0.03]
[1617337689477,0.251571,59711.0,59702.0,0.03]
[1617337689678,0.06113257,59710.0,59702.0,0.03]
[1617337689878,0.03985941,59709.0,59702.0,0.03]
[1617337690079,0.021272,59708.0,59702.0,0.03]
[1617337690899,0.31903821,59711.0,59702.0,0.03]
[1617337691102,0.021272,59710.0,59702.0,0.03]
[1617337691499,0.03985618,59709.0,59702.0,0.03]
[1617337691698,0.021272,59708.0,59702.0,0.03]
[1617337692301,0.03985688,59707.0,59702.0,0.03]
[1617337692502,0.021272,59706.0,59702.0,0.03]
[1617337692901,0.021272,59706.0,59696.0,0.03]
[1617337693152,0.05084726,59707.0,59697.0,0.386904]
[1617337693350,0.05,59711.0,59697.0,0.386904]
[1617337693552,0.05,59711.0,59696.0,0.03]
[1617337693753,0.03985705,59710.0,59696.0,0.034]
[1617337694013,0.03985886,59714.0,59696.0,0.03653731]
[1617337694214,0.03986211,59709.0,59696.0,0.03653731]
[1617337694415,0.25485753,59714.0,59696.0,0.03653731]
[1617337694619,0.251579,59709.0,59696.0,0.03653731]
[1617337695024,0.301579,59709.0,59696.0,0.03253731]
[1617337695219,0.05,59709.0,59696.0,0.03253731]
[1617337695415,0.35,59709.0,59696.0,0.03253731]
[1617337695617,0.3,59709.0,59696.0,0.03253731]
[1617337695817,0.251599,59704.0,59696.0,0.03253731]
[1617337696017,0.30240842,59704.0,59696.0,0.03253731]
[1617337696215,0.35240842,59704.0,59697.0,0.03]
[1617337697616,0.10080942,59704.0,59697.0,0.03]
[1617337697819,0.10080942,59704.0,59698.0,0.162]
[1617337698018,0.05080942,59704.0,59698.0,0.162]
[1617337698431,0.05080942,59704.0,59697.0,0.03]
[1617337698636,0.05080942,59704.0,59700.0,0.03]
[1617337699236,0.05080942,59704.0,59700.0,0.03253734]
[1617337702661,0.30240642,59704.0,59700.0,0.03253734]
[1617337702863,0.00746717,59703.0,59700.0,0.03253734]
[1617337703064,0.00746717,59703.0,59701.0,0.166]
[1617337703264,0.00746717,59703.0,59700.0,0.03253734]
[1617337703693,0.00746717,59703.0,59701.0,0.03]
[1617337705293,1.871272,59702.0,59701.0,0.03]
[1617337705495,2.206272,59702.0,59701.0,0.03]
[1617337705696,0.356272,59702.0,59701.0,0.03]
[1617337706096,0.071272,59702.0,59701.0,0.03]
[1617337706308,0.541272,59702.0,59701.0,0.03]
[1617337706509,0.071272,59702.0,59701.0,0.03]
[1617337706910,0.021272,59702.0,59701.0,0.03]
[1617337707307,1.871272,59702.0,59701.0,0.03]
[1617337707508,2.251272,59702.0,59701.0,0.03]
[1617337707710,2.38046384,59702.0,59701.0,0.03]
[1617337707913,0.53046384,59702.0,59701.0,0.03]
[1617337708107,0.20046384,59702.0,59701.0,0.03]
[1617337708314,1.92873923,59702.0,59701.0,0.03]
[1617337708518,1.92873923,59702.0,59700.0,0.00253734]
[1617337708519,0.526272,59701.0,59700.0,0.00253734]
[1617337708713,0.69579329,59701.0,59700.0,0.00253734]
[1617337710061,1.00747335,59701.0,59700.0,0.00253734]
[1617337711457,0.99747335,59701.0,59700.0,0.00253734]
[1617337711863,0.68579329,59701.0,59700.0,0.00253734]
[1617337712467,0.99601859,59701.0,59695.0,0.2654]
[1617337712867,0.66527692,59700.0,59695.0,0.2654]
[1617337713066,1.871272,59696.0,59695.0,0.2654]
[1617337713473,1.921272,59696.0,59695.0,0.2654]
[1617337713669,1.921272,59696.0,59695.0,0.18996801]
[1617337713670,2.56777196,59696.0,59695.0,0.18996801]
[1617337714495,2.58523917,59696.0,59695.0,0.18996801]
[1617337715499,2.58523917,59696.0,59680.0,0.03]
[1617337715708,0.161,59692.0,59680.0,0.03]
[1617337715903,0.021272,59691.0,59680.0,0.03]
[1617337716104,0.11350973,59691.0,59671.0,0.03]
[1617337716303,0.125855,59682.0,59671.0,0.03]
[1617337716503,0.00292952,59673.0,59671.0,0.0356]
[1617337716920,0.00292952,59673.0,59672.0,0.386904]
[1617337717118,0.30171,59677.0,59672.0,0.386904]
[1617337718321,0.30171,59677.0,59676.0,0.03]
[1617337718722,1.481272,59677.0,59676.0,0.03]
[1617337719125,0.05,59677.0,59676.0,0.03]
[1617337719321,0.00747005,59681.0,59676.0,0.03]
[1617337719940,0.021272,59680.0,59676.0,0.03]
[1617337720546,0.251698,59679.0,59677.0,0.00037837]
[1617337720743,1.871272,59678.0,59677.0,0.00037837]
[1617337721143,2.841272,59678.0,59677.0,0.00037837]
[1617337721348,2.891272,59678.0,59677.0,0.00037837]
[1617337721547,3.5351241,59678.0,59677.0,8.37e-06]
[1617337721748,3.41841427,59678.0,59677.0,8.37e-06]
[1617337721946,3.76226637,59678.0,59677.0,8.37e-06]
[1617337722171,4.26226637,59678.0,59677.0,8.37e-06]
[1617337722383,0.16,59671.0,59651.0,0.00042]
[1617337722588,0.16,59671.0,59640.0,0.01307439]
[1617337722589,0.13103955,59642.0,59640.0,0.01307439]
[1617337722785,1.86,59641.0,59640.0,0.01307439]
[1617337722980,1.86,59641.0,59631.0,0.0002]
[1617337722981,0.455,59640.0,59631.0,0.0002]
[1617337723184,0.455,59640.0,59611.0,0.02]
[1617337723185,2.50692904,59639.0,59611.0,0.02]
[1617337723379,2.50692904,59639.0,59626.0,0.002]
[1617337723380,2.52820104,59639.0,59626.0,0.002]
[1617337723580,0.002,59635.0,59627.0,0.955]
[1617337723782,0.88186569,59638.0,59627.0,0.955]
[1617337723783,0.23949359,59638.0,59628.0,0.14]
[1617337723977,0.23949359,59638.0,59629.0,0.953]
[1617337724194,0.13103955,59642.0,59632.0,0.25183]
[1617337724195,0.13303955,59642.0,59632.0,0.25183]
[1617337724403,0.13103955,59642.0,59633.0,0.386904]
[1617337724791,0.00747537,59641.0,59635.0,0.386904]
[1617337724998,0.00747537,59641.0,59636.0,0.03]
[1617337725389,0.00747537,59641.0,59633.0,0.004]
[1617337725591,0.00747537,59641.0,59634.0,0.386904]
[1617337725987,0.00747537,59641.0,59633.0,0.004]
[1617337726189,0.89441398,59641.0,59632.0,0.25183]
[1617337726389,0.21648986,59640.0,59632.0,0.25183]
[1617337726790,0.76848986,59640.0,59637.0,0.156]
[1617337726991,1.00829469,59640.0,59637.0,0.156]
[1617337727191,1.00829469,59640.0,59639.0,0.159]
[1617337727418,1.00829469,59640.0,59639.0,3.24877455]
[1617337727419,0.23980483,59640.0,59639.0,3.24877455]
[1617337727629,1.44641398,59641.0,59640.0,3.423718]
[1617337727630,0.00747537,59641.0,59640.0,3.423718]
[1617337727826,0.00747537,59641.0,59640.0,7.62506274]
[1617337728219,0.00747537,59641.0,59640.0,7.29134474]
[1617337728418,0.00747537,59641.0,59640.0,7.32134474]
[1617337730043,0.00747537,59641.0,59640.0,2.97834474]
[1617337730249,0.00747537,59641.0,59640.0,2.82334474]
[1617337730451,0.00747537,59641.0,59640.0,2.97834474]
[1617337730646,0.00747537,59641.0,59640.0,2.94834474]
[1617337730847,0.00747537,59641.0,59640.0,3.501401]
[1617337731046,0.00747537,59641.0,59640.0,2.45016]
[1617337731247,0.00747537,59641.0,59640.0,2.84510374]
[1617337731444,0.12851492,59642.0,59641.0,3.423718]
[1617337731648,0.12851492,59642.0,59641.0,1.11602274]
[1617337731847,0.12851492,59642.0,59641.0,2.137119]
[1617337732044,0.12851492,59642.0,59641.0,1.803401]
[1617337732449,0.12851492,59642.0,59641.0,2.19834474]
[1617337732664,0.12851492,59642.0,59641.0,1.803401]
[1617337733868,0.12851492,59642.0,59641.0,1.833401]
[1617337734266,0.12825687,59642.0,59641.0,1.997401]
[1617337734469,0.12825687,59642.0,59641.0,1.833401]
[1617337735066,0.17825687,59642.0,59641.0,1.833401]
[1617337735288,0.12825687,59642.0,59641.0,1.833401]
[1617337737094,0.12825687,59642.0,59641.0,1.798401]
[1617337737691,0.12825687,59642.0,59641.0,1.388401]
[1617337737922,0.12825687,59642.0,59641.0,1.550401]
[1617337738123,0.12825687,59642.0,59641.0,2.97158874]
[1617337738321,0.12825687,59642.0,59641.0,3.02897874]
[1617337738527,0.12825687,59642.0,59641.0,3.14064874]
[1617337738725,0.12825687,59642.0,59641.0,4.64864874]
[1617337739169,0.12825687,59642.0,59641.0,6.70864874]
[1617337740369,0.12325687,59642.0,59641.0,6.70864874]
[1617337740769,0.12325687,59642.0,59641.0,7.04425774]
[1617337741369,0.12325687,59642.0,59641.0,7.37797574]
[1617337744175,0.12325687,59642.0,59641.0,4.98425774]
[1617337744975,0.12325687,59642.0,59641.0,6.54425774]
[1617337745170,0.12325687,59642.0,59641.0,4.98425774]
[1617337745373,0.12325687,59642.0,59641.0,4.98679764]
[1617337745818,0.12325687,59642.0,59641.0,2.70273764]
[1617337746019,0.12325687,59642.0,59641.0,3.30773764]
[1617337746217,0.12325687,59642.0,59641.0,2.69773764]
[1617337746817,0.12325687,59642.0,59641.0,2.3077939]
[1617337747220,0.12325687,59642.0,59641.0,2.85373764]
[1617337747814,0.12325687,59642.0,59641.0,3.33373764]
[1617337748016,0.12325687,59642.0,59641.0,2.85373764]
[1617337748427,0.12325687,59642.0,59641.0,3.80673764]
[1617337748628,0.13947352,59642.0,59641.0,2.85373764]
[1617337748826,0.13947352,59642.0,59641.0,3.72373764]
[1617337749020,0.13947352,59642.0,59641.0,2.85373764]
[1617337749224,0.13947352,59642.0,59641.0,2.82373764]
[1617337749823,0.13947352,59642.0,59641.0,3.53373764]
[1617337750022,0.13947352,59642.0,59641.0,2.82373764]
[1617337750225,0.13947352,59642.0,59641.0,2.85373764]
[1617337751039,0.29531486,59642.0,59641.0,2.85373764]
[1617337751439,0.3027896,59642.0,59641.0,2.85373764]
[1617337752039,0.14694826,59642.0,59641.0,2.85373764]
[1617337752241,0.30277249,59642.0,59641.0,2.85373764]
[1617337752447,0.14694826,59642.0,59641.0,2.69773764]
[1617337752844,0.25079596,59642.0,59641.0,2.69773764]
[1617337753045,0.25079596,59642.0,59641.0,2.66773764]
[1617337753242,0.25079596,59642.0,59641.0,2.23332026]
[1617337753442,0.25079596,59642.0,59641.0,1.9421849]
[1617337754289,0.25079596,59642.0,59641.0,1.9721849]
[1617337754486,0.25079596,59642.0,59641.0,1.4171849]
[1617337754887,0.25079596,59642.0,59641.0,3.35832026]
[1617337755091,0.25079596,59642.0,59641.0,3.61010426]
[1617337755289,0.40609554,59642.0,59641.0,2.2289689]